fUST/lending_fUST_20240515
["ID","MTS","AMOUNT","RATE_DAILY","PERIOD"]
[327075267,1715783445885,-521.89035678,0.00019998,2]
[327075268,1715783445894,-157.20588658,0.00019998,2]
[327075269,1715783445904,-155.30635425,0.00019998,2]
[327075270,1715783445915,-911.88297993,0.00019998,2]
[327075271,1715783445929,-189.69444695,0.00019998,2]
[327075272,1715783445939,-412.53784759,0.00019998,2]
[327075273,1715783445948,-186.67078256,0.00019998,2]
[327075274,1715783445959,-999.63689439,0.00019998,2]
[327075275,1715783445968,-533.97232458,0.00019998,2]
[327075276,1715783445978,-1895.81355421,0.00019999,2]
[327075277,1715783445988,-7421.40090201,0.0002,3]
[327075278,1715783445998,-65198.23873826,0.0002,2]
[327075279,1715783446011,-1564.87365674,0.0002,2]
[327075280,1715783446021,-500.0,0.0002,2]
[327075281,1715783446031,-10634.973696,0.0002,2]
[327075282,1715783446041,-240.12095836,0.0002,2]
[327075283,1715783446051,-361.2736101,0.0002,2]
[327075284,1715783446061,-279.60323409,0.0002,2]
[327075285,1715783446070,-155.17127202,0.0002,2]
[327075286,1715783446079,-66494.37226207,0.0002,2]
[327075287,1715783446089,-151.0,0.0002,2]
[327075288,1715783446099,-151.0,0.0002,2]
[327075289,1715783446108,-1163.435789,0.0002,2]
[327075290,1715783446122,-1163.435789,0.0002,2]
[327075291,1715783446131,-383.540511,0.0002,2]
[327075292,1715783446139,-383.540511,0.0002,2]
[327075293,1715783446149,-151.0,0.0002,2]
[327075294,1715783446157,-151.0,0.0002,2]
[327075295,1715783446166,-811.228582,0.0002,2]
[327075296,1715783446175,-811.228582,0.0002,2]
[327075297,1715783446184,-151.0,0.0002,2]
[327075298,1715783446194,-151.0,0.0002,2]
[327075299,1715783446204,-151.0,0.0002,2]
[327075300,1715783446214,-352.281006,0.0002,2]
[327075301,1715783446223,-352.281006,0.0002,2]
[327075302,1715783446233,-408.5018068,0.0002,2]
[327075303,1715783446242,-204.2509034,0.00020137,2]
[327075304,1715783446251,-204.2613691,0.00020548,2]
[327075305,1715783446260,-151.868089,0.000209,2]
[327075306,1715783446270,-344.473106,0.000209,2]
[327075307,1715783446280,-344.473106,0.000209,2]
[327075308,1715783446289,-151.0,0.000209,2]
[327075309,1715783446299,-151.0,0.000209,2]
[327075310,1715783446309,-204.13124,0.000209,2]
[327075311,1715783446320,-204.13124,0.000209,2]
[327075312,1715783446330,-151.0,0.000209,2]
[327075313,1715783446339,-151.0,0.000209,2]
[327075314,1715783446349,-497.339836,0.000209,2]
[327075315,1715783446357,-497.339836,0.000209,2]
[327075316,1715783446372,-151.884806,0.000209,2]
[327075317,1715783446381,-198.566439,0.000209,2]
[327075318,1715783446390,-198.566439,0.000209,2]
[327075320,1715783446399,-1116.65638,0.000209,2]
[327075322,1715783446408,-1116.65638,0.000209,2]
[327075323,1715783446417,-590.0,0.000209,2]
[327075324,1715783446426,-1134.71263282,0.00020919,2]
[327075325,1715783446434,-35122.81458588,0.00021,2]
[327075410,1715783501048,2595.90692662,9.999e-05,2]
[327075417,1715783697200,1905.9836045,0.00017603,2]
[327075418,1715783739821,24900.0,0.00017899,2]
[327075419,1715783802870,691.5040352,0.00017744,2]
[327075420,1715783819230,4909.92892707,0.000125,2]
[327075421,1715784057257,242.08726604,9.999e-05,2]
[327075422,1715784099802,205.026507,0.00017798,2]
[327075423,1715784126938,771.06307228,0.00016461,2]
[327075424,1715784146857,776.34678265,0.00016461,2]
[327075425,1715784158211,1449.81188868,0.0001,2]
[327075427,1715784331896,24900.0,0.00017253,2]
[327075428,1715784426114,-26195.07010062,0.00018172,2]
[327075429,1715784426142,-10445.91088101,0.00018172,2]
[327075430,1715784426167,-2113.61592946,0.00018173,2]
[327075431,1715784426194,-2399.32123468,0.00018173,2]
[327075432,1715784426222,-242.08726604,0.00018174,2]
[327075433,1715784426257,-10503.99952427,0.00018174,2]
[327075434,1715784426284,-9394.10786134,0.00018174,2]
[327075435,1715784426313,-59372.20880014,0.00018175,2]
[327075436,1715784426341,-1392.93694107,0.00018177,2]
[327075437,1715784426370,-895.90945831,0.00018182,2]
[327075438,1715784426402,-169.9992477,0.00018182,2]
[327075439,1715784426429,-154.90705577,0.00018282,2]
[327075440,1715784426457,-2677.50168314,0.00018286,2]
[327075441,1715784426484,-40565.87703249,0.00018295,2]
[327075442,1715784426511,-163.97973837,0.000183,2]
[327075443,1715784426539,-629.13746473,0.000189,2]
[327075444,1715784426565,-154.82968734,0.00018998,2]
[327075445,1715784426592,-154.82968734,0.00018998,2]
[327075446,1715784426620,-1003.61930091,0.00018999,2]
[327075447,1715784426646,-62334.58149687,0.00019,2]
[327075448,1715784426674,-169.9992477,0.00019041,2]
[327075449,1715784426697,-296.81185104,0.00019084,2]
[327075450,1715784426720,-658.2721126,0.00019084,2]
[327075451,1715784426973,-836.51075015,0.00019084,2]
[327075452,1715784427004,-821.26741089,0.00019085,2]
[327075453,1715784427024,-154.90705577,0.00019085,2]
[327075454,1715784427046,-163.97973836,0.000191,2]
[327075455,1715784427066,-405.11550725,0.00019178,2]
[327075456,1715784427086,-210.40592984,0.00019178,2]
[327075457,1715784427107,-232.7984235,0.00019178,2]
[327075458,1715784427129,-500.0,0.00019178,2]
[327075459,1715784427152,-500.0,0.00019178,2]
[327075460,1715784427174,-500.0,0.00019178,2]
[327075461,1715784427197,-500.0,0.00019178,2]
[327075462,1715784427219,-500.0,0.00019178,2]
[327075463,1715784427248,-254.43091446,0.00019178,2]
[327075464,1715784427269,-500.0,0.00019178,2]
[327075465,1715784427291,-500.0,0.00019178,2]
[327075466,1715784427313,-500.0,0.00019178,2]
[327075467,1715784427335,-500.0,0.00019178,2]
[327075468,1715784427359,-500.0,0.00019178,2]
[327075469,1715784427380,-500.0,0.00019178,2]
[327075470,1715784427401,-371.91193215,0.00019178,2]
[327075471,1715784427421,-180.47766,0.00019178,2]
[327075472,1715784427443,-182.960231,0.00019178,2]
[327075473,1715784427464,-895.90945829,0.00019484,2]
[327075474,1715784427485,-163.97973836,0.000199,2]
[327075475,1715784427506,-169.9992477,0.000199,2]
[327075476,1715784427529,-150.0,0.0001997,2]
[327075477,1715784427553,-684.29354561,0.00019999,2]
[327075478,1715784427575,-499.86264339,0.0002,2]
[327075479,1715784427599,-43295.42964089,0.0002,2]
[327075480,1715784430110,-3060.90965728,0.00018171,2]
[327075481,1715784430132,-9574.7252327,0.0002,2]
[327075485,1715784602249,358.870118,0.00017968,2]
[327075537,1715784635176,-3060.90965728,0.00018893,2]
[327075539,1715784635187,-10503.99952427,0.00018893,2]
[327075541,1715784635196,-242.08726604,0.00018893,2]
[327075543,1715784635206,-2113.61592946,0.00018893,2]
[327075545,1715784635215,-59372.20880014,0.00018894,2]
[327075547,1715784635225,-725.7201463,0.00018895,2]
[327075549,1715784635238,-9394.10786134,0.00018895,2]
[327075550,1715784635247,-419.42497648,0.000189,2]
[327075552,1715784635256,-176.538647,0.00019178,2]
[327075553,1715784635266,-671.93209377,0.00019899,2]
[327075554,1715784635277,-706.76969436,0.00019997,6]
[327075555,1715784635286,-583.82565716,0.00019998,2]
[327075556,1715784635296,-10445.91088101,0.00019999,2]
[327075557,1715784635310,-310.025795,0.0002,2]
[327075558,1715784635319,-310.025795,0.0002,2]
[327075559,1715784635328,-178.709796,0.0002,2]
[327075560,1715784635337,-178.709796,0.0002,2]
[327075561,1715784635350,-187.107902,0.0002,2]
[327075562,1715784635359,-187.107902,0.0002,2]
[327075563,1715784635368,-153.260733,0.0002,2]
[327075564,1715784635378,-1004.990742,0.0002,2]
[327075565,1715784635389,-1004.990742,0.0002,2]
[327075566,1715784635398,-1564.87365674,0.0002,2]
[327075567,1715784635407,-67567.98467281,0.0002,2]
[327075568,1715784635420,-426.84831416,0.0002,2]
[327075569,1715784635429,-644.77470548,0.00020115,2]
[327075570,1715784635438,-2744.93316216,0.00020737,2]
[327075571,1715784635448,-301.49356762,0.0002079,2]
[327075572,1715784635457,-340.15699145,0.000208,2]
[327075573,1715784635469,-1659.84300855,0.000208,2]
[327075574,1715784635478,-522.86515013,0.00020896,2]
[327075575,1715784635487,-3638.18344272,0.00020898,2]
[327075616,1715784640264,-5113.33881439,0.00020898,2]
[327075617,1715784640273,-180.7475617,0.00020898,2]
[327075618,1715784640284,-9792.90600355,0.000209,3]
[327075619,1715784640293,-10081.39984394,0.000209,2]
[327075624,1715784642049,-577.82429758,0.000209,2]
[327075625,1715784642058,-755.50670759,0.000209,3]
[327075626,1715784642089,-87282.55023713,0.000209,3]
[327075732,1715784645004,-849.94305528,0.000209,3]
[327075734,1715784645014,-178.709796,0.000209,2]
[327075736,1715784645024,-178.709796,0.000209,2]
[327075737,1715784645036,-187.107902,0.000209,2]
[327075739,1715784645045,-187.107902,0.000209,2]
[327075741,1715784645054,-1004.990742,0.000209,2]
[327075743,1715784645063,-1004.990742,0.000209,2]
[327075745,1715784645072,-1047.09221,0.000209,2]
[327075747,1715784645081,-1047.09221,0.000209,2]
[327075749,1715784645090,-151.0,0.000209,2]
[327075751,1715784645100,-345.18646,0.000209,2]
[327075753,1715784645109,-345.18646,0.000209,2]
[327075755,1715784645119,-447.605852,0.000209,2]
[327075757,1715784645128,-447.605852,0.000209,2]
[327075758,1715784645138,-528.76307526,0.00020911,2]
[327075759,1715784645147,-1495.65941735,0.00020912,2]
[327075760,1715784645156,-671.93209371,0.00020956,2]
[327075761,1715784645166,-1633.41525952,0.00020998,2]
[327075762,1715784645175,-7883.04572548,0.00021,2]
[327075763,1715784645593,-293.26520376,0.00021,2]
[327075793,1715784649457,-522.86515013,0.00020899,2]
[327075794,1715784649471,-202.85499617,0.00020899,2]
[327075795,1715784649482,-167.34241342,0.000209,2]
[327075796,1715784698206,154.81422293,9.999e-05,2]
[327075797,1715784699111,702.19428712,9.999e-05,2]
[327075798,1715784734000,497.85601528,9.999e-05,2]
[327075799,1715784735415,154.81422293,9.999e-05,2]
[327075800,1715784751428,194.35454453,9.999e-05,2]
[327075801,1715784846858,-725.7201463,0.00018377,2]
[327075802,1715784846880,-1042.9198537,0.00018378,2]
[327075803,1715784882812,-154.81422293,0.00018375,2]
[327075804,1715784882833,-2630.52577707,0.00018375,2]
[327075805,1715784922977,-2595.90692662,0.00018372,2]
[327075806,1715784922997,-2677.50168314,0.00018372,2]
[327075807,1715784923018,-3060.90965728,0.00018373,2]
[327075808,1715784923039,-10369.98173296,0.00018373,2]
[327075809,1715784924887,350.07606363,9.999e-05,2]
[327075810,1715784924915,999.7854378,9.999e-05,2]
[327075811,1715785017164,150.0,0.0002002,11]
[327075812,1715785110092,333.20084,0.00017372,2]
[327075813,1715785142305,150.0,0.00023,30]
[327075814,1715785165297,1185.6322691,0.00017477,2]
[327075815,1715785173415,1889.8027822,0.00017337,2]
[327075816,1715785255375,242.08726604,9.999e-05,2]
[327075817,1715785255464,528.76307526,9.999e-05,2]
[327075818,1715785310581,20151.90138286,0.00017,2]
[327075819,1715785337191,154.81422293,9.999e-05,2]
[327075820,1715785339286,24900.0,0.00017352,2]
[327075821,1715785387156,152.884876,0.0001,2]
[327075823,1715785593584,166.60042,0.00017345,2]
[327075824,1715785633142,-9394.10786134,0.00018335,2]
[327075825,1715785633163,-8169.81606155,0.00018335,2]
[327075885,1715785834123,-528.76307526,0.00018232,2]
[327075886,1715785834132,-592.33379554,0.00018233,2]
[327075887,1715785834142,-36653.76446269,0.00018326,2]
[327075986,1715785838951,-67616.03192559,0.00018326,2]
[327075988,1715785838961,-10503.99952427,0.00018328,2]
[327075990,1715785838970,-6834.34922297,0.00018334,2]
[327075992,1715785838980,-156.38717577,0.00018348,2]
[327075994,1715785838989,-235.79550054,0.00018353,2]
[327075996,1715785838998,-7848.29057262,0.00018358,2]
[327075998,1715785839009,-659.4151154,0.00018372,2]
[327076000,1715785839018,-1658.90276471,0.00018372,2]
[327076002,1715785839028,-529.3650324,0.00018372,2]
[327076004,1715785839037,-10872.83638601,0.00018375,2]
[327076006,1715785839047,-1241.04349172,0.00018375,2]
[327076008,1715785839056,-2594.90254816,0.00018376,2]
[327076010,1715785839065,-725.7201463,0.00018377,2]
[327076012,1715785839074,-155.04187543,0.00018377,2]
[327076014,1715785839083,-279.61665099,0.000189,2]
[327076016,1715785839092,-500.0,0.00019178,2]
[327076018,1715785839102,-480.0,0.00019178,2]
[327076019,1715785839111,-500.0,0.00019178,2]
[327076021,1715785839120,-500.0,0.00019178,2]
[327076023,1715785839130,-500.0,0.00019178,2]
[327076026,1715785839139,-500.0,0.00019178,2]
[327076027,1715785839148,-500.0,0.00019178,2]
[327076029,1715785839158,-500.0,0.00019178,2]
[327076031,1715785839167,-559.62065268,0.00019178,2]
[327076034,1715785839176,-500.0,0.00019178,2]
[327076035,1715785839186,-500.0,0.00019178,2]
[327076038,1715785839196,-500.0,0.00019178,2]
[327076040,1715785839205,-500.0,0.00019178,2]
[327076041,1715785839214,-500.0,0.00019178,2]
[327076043,1715785839224,-500.0,0.00019178,2]
[327076045,1715785839233,-500.0,0.00019178,2]
[327076047,1715785839242,-500.0,0.00019178,2]
[327076050,1715785839253,-500.0,0.00019178,2]
[327076051,1715785839262,-500.0,0.00019178,2]
[327076053,1715785839271,-500.0,0.00019178,2]
[327076055,1715785839281,-500.0,0.00019178,2]
[327076058,1715785839291,-500.0,0.00019178,2]
[327076059,1715785839301,-500.0,0.00019178,2]
[327076062,1715785839311,-500.0,0.00019178,2]
[327076063,1715785839320,-500.0,0.00019178,2]
[327076066,1715785839330,-500.0,0.00019178,2]
[327076067,1715785839339,-336.4753023,0.00019178,2]
[327076069,1715785839349,-500.0,0.00019178,2]
[327076071,1715785839358,-500.0,0.00019178,2]
[327076074,1715785839368,-500.0,0.00019178,2]
[327076075,1715785839377,-500.0,0.00019178,2]
[327076077,1715785839387,-500.0,0.00019178,2]
[327076080,1715785839396,-500.0,0.00019178,2]
[327076081,1715785839407,-500.0,0.00019178,2]
[327076084,1715785839417,-500.0,0.00019178,2]
[327076085,1715785839426,-500.0,0.00019178,2]
[327076087,1715785839436,-200.0,0.00019178,2]
[327076090,1715785839445,-500.0,0.00019178,2]
[327076092,1715785839455,-510.12,0.00019178,2]
[327076094,1715785839464,-176.538647,0.00019178,2]
[327076095,1715785839474,-592.33379548,0.00019528,2]
[327076098,1715785839483,-2000.0,0.00019762,2]
[327076100,1715785839493,-10445.91088101,0.00019862,2]
[327076101,1715785839503,-194.02857951,0.00019862,2]
[327076103,1715785839513,-929.9125183,0.00019865,2]
[327076105,1715785839523,-1564.87365674,0.0002,2]
[327076108,1715785839532,-386.06438763,0.0002,2]
[327076110,1715785839542,-21424.86055295,0.0002002,2]
[327076112,1715785839555,-6805.76548467,0.0002002,2]
[327076114,1715785839565,-150.0,0.000203,2]
[327076116,1715785839574,-2595.21198157,0.00020754,2]
[327076118,1715785839584,-151.152,0.00020756,2]
[327076120,1715785839594,-592.33379548,0.00020823,2]
[327076122,1715785839604,-1943.22846489,0.00020898,2]
[327076124,1715785839614,-156.3,0.00020898,2]
[327076126,1715785839624,-189.69444695,0.00020899,2]
[327076128,1715785839634,-1269.19527169,0.00020911,2]
[327076130,1715785839644,-1578.94023336,0.00020911,2]
[327076132,1715785839653,-303.78720409,0.00020911,2]
[327076134,1715785839664,-155.42567318,0.00020911,2]
[327076136,1715785839674,-1801.36957745,0.00020911,2]
[327076138,1715785839688,-206.10551378,0.00020911,2]
[327076140,1715785839698,-1093.15488172,0.00020911,2]
[327076142,1715785839708,-744.67639595,0.00020911,2]
[327076144,1715785839718,-803.53621005,0.00020911,2]
[327076146,1715785839728,-802.7829814,0.00020911,2]
[327076148,1715785839737,-302.80126513,0.00020911,2]
[327076150,1715785839747,-531.03621077,0.00020911,2]
[327076152,1715785839758,-298.47777015,0.00020911,2]
[327076154,1715785839774,-165.99826578,0.00020911,2]
[327076157,1715785839785,-4795.56112026,0.00020913,2]
[327076159,1715785839794,-25916.81201335,0.00021,2]
[327076160,1715785839803,-9322.92256472,0.00021,5]
[327076162,1715785839813,-3974.71033268,0.00021,2]
[327076165,1715785839823,-4865.06128223,0.00021,2]
[327076167,1715785839832,-281.0,0.00021,2]
[327076169,1715785839843,-621.23873527,0.00021121,2]
[327076171,1715785839852,-1135.55507795,0.000215,2]
[327076173,1715785839861,-150.0,0.0002158,3]
[327076175,1715785839871,-424.2,0.00021626,2]
[327076176,1715785839880,-4297.99545102,0.00021717,3]
[327076178,1715785839890,-49315.4010063,0.00021717,3]
[327076181,1715785839906,-619.59764545,0.00021717,3]
[327076183,1715785839918,-1649.16941498,0.00021717,3]
[327076249,1715785840772,-8248.02995441,0.00018325,2]
[327076275,1715785843571,-353.095,0.00018325,2]
[327076324,1715786126439,7890.55584427,9.999e-05,2]
[327076325,1715786267392,150.0,0.00023,30]
[327076326,1715786268568,360.15301977,9.999e-05,2]
[327076327,1715786420580,9905.341429,0.00023,30]
[327076328,1715786435281,2633.04320867,9.999e-05,2]
[327076329,1715786438856,260.5,9.999e-05,2]
[327076330,1715786448394,16139.66154075,9.999e-05,2]
[327076331,1715786458142,15443.56819639,9.999e-05,2]
[327076332,1715786459741,387.6485349,0.00017464,2]
[327076333,1715786462796,304.46279691,9.999e-05,2]
[327076334,1715786464074,770.26830404,0.00016616,2]
[327076335,1715786464826,273.37336231,9.9e-05,2]
[327076336,1715786466033,223.62416515,9.999e-05,2]
[327076337,1715786467731,480.05,0.00010959,2]
[327076338,1715786472367,16139.66154075,9.999e-05,2]
[327076339,1715786472890,273.37336231,9.9e-05,2]
[327076340,1715786472943,889.8572113,0.00018461,7]
[327076341,1715786473704,857.66549788,9.999e-05,2]
[327076342,1715786477666,452.3303047,9.999e-05,2]
[327076343,1715786479742,771.51166085,0.000138,2]
[327076344,1715786486752,330.80243403,9.999e-05,2]
[327076345,1715786487343,2677.50168314,9.999e-05,2]
[327076346,1715786488783,1402.37929891,9.999e-05,2]
[327076347,1715786490346,8443.23913032,9.999e-05,2]
[327076348,1715786493878,942.02546264,0.00015,2]
[327076349,1715786495932,1709.4519652,0.00017323,2]
[327076350,1715786503112,689.90178801,9.999e-05,2]
[327076351,1715786506473,1338.26302922,9.999e-05,2]
[327076352,1715786511567,2141.92776442,0.00015,2]
[327076353,1715786512111,2000.0,0.0002,15]
[327076354,1715786512624,930.94102569,0.00014,2]
[327076355,1715786512753,262.09871976,9.999e-05,2]
[327076356,1715786513617,292.60916471,9.999e-05,2]
[327076357,1715786514811,186.24799668,9.999e-05,2]
[327076358,1715786515053,260.98401074,9.999e-05,2]
[327076359,1715786515271,154.79876161,0.00015,2]
[327076360,1715786517119,513.18353158,9.999e-05,2]
[327076361,1715786517745,154.79876161,9.999e-05,2]
[327076362,1715786517992,255.70191213,0.00016486,2]
[327076363,1715786519534,179.82,0.00010959,2]
[327076364,1715786519627,1495.65941735,9.999e-05,2]
[327076365,1715786521204,154.79876161,9.999e-05,2]
[327076366,1715786522261,154.79876161,9.999e-05,2]
[327076367,1715786528832,492.70299531,9.999e-05,2]
[327076368,1715786530566,899.14,0.00010959,2]
[327076369,1715786530618,930.46278308,0.00017402,2]
[327076370,1715786533384,223.91732351,0.00015,2]
[327076371,1715786536299,1042.78198065,9.999e-05,2]
[327076372,1715786552637,465.86744219,9.999e-05,2]
[327076373,1715786554583,194.35454453,9.999e-05,2]
[327076374,1715786601181,2088.06673595,9.999e-05,2]
[327076375,1715786601740,1221.693847,0.00017213,2]
[327076378,1715786610453,1580.67651805,9.999e-05,2]
[327076379,1715786619333,2094.1586167,9.999e-05,2]
[327076381,1715786631399,202.7142064,0.00017346,2]
[327076383,1715786632219,1349.86150143,9.999e-05,2]
[327076391,1715786658658,930.17254207,0.00017297,2]
[327076394,1715786678185,979.12217151,0.00018007,2]
[327076395,1715786683057,831.39999549,0.00018006,2]
[327076400,1715786741142,-1042.78198065,0.00018097,2]
[327076401,1715786741162,-9394.10786134,0.00018097,2]
[327076402,1715786741181,-1402.37929891,0.00018097,2]
[327076403,1715786741201,-104269.79638828,0.00018098,2]
[327076404,1715786741219,-1495.65941735,0.00018098,2]
[327076405,1715786741404,-452.3303047,0.00018099,2]
[327076406,1715786741427,-9806.90055777,0.00018099,2]
[327076407,1715786787047,3000.0,0.00017097,2]
[327076408,1715786808387,250.0,0.00017095,2]
[327076409,1715786814106,-2633.04320867,0.00018091,2]
[327076410,1715786814127,-942.02546264,0.00018091,2]
[327076411,1715786814148,-1052.8387059,0.00018091,2]
[327076412,1715786842128,-155.2066639,0.00018088,2]
[327076413,1715786842157,-260.98401074,0.00018088,2]
[327076414,1715786842185,-10503.99952427,0.00018088,2]
[327076415,1715786842214,-1349.86150143,0.00018088,2]
[327076416,1715786842242,-513.18353158,0.00018089,2]
[327076417,1715786842270,-7890.55584427,0.00018089,2]
[327076418,1715786842297,-1042.78198065,0.0001809,2]
[327076419,1715786842325,-300.12751648,0.0001809,2]
[327076420,1715786842352,-945.04806708,0.0001809,2]
[327076421,1715786842379,-1407.87685051,0.0001809,2]
[327076422,1715786842407,-15439.57264047,0.0001809,2]
[327076423,1715786851102,-20235.96598836,0.00018086,2]
[327076424,1715786851124,-26195.07010062,0.00018087,2]
[327076425,1715786851144,-20529.70405921,0.0001809,2]
[327076426,1715786852159,-20765.55124,0.00018086,2]
[327076428,1715786875325,1021.2510867,0.0001709,2]
[327076429,1715786892149,25403.6586723,0.0001709,2]
[327076430,1715786958440,856.73190001,0.00017982,2]
[327076431,1715786961234,24900.0,0.00017087,2]
[327076472,1715787036196,-154.79876161,0.00018076,2]
[327076473,1715787036206,-223.00609404,0.00018076,2]
[327076474,1715787036317,-6032.6274113,0.00018076,2]
[327076476,1715787036331,-4248.36601893,0.00018076,2]
[327076478,1715787036341,-6959.20597892,0.00018077,2]
[327076479,1715787036352,-3060.90965728,0.00018078,2]
[327076480,1715787036361,-26195.07010062,0.00018078,2]
[327076481,1715787036371,-282.49185002,0.00018078,2]
[327076482,1715787036380,-2677.50168314,0.00018079,2]
[327076483,1715787036390,-59372.20880014,0.00018079,2]
[327076484,1715787036400,-7889.51322941,0.00018087,2]
[327076561,1715787039184,-156.36643608,0.00018075,2]
[327076562,1715787039195,-1349.86150143,0.00018076,2]
[327076563,1715787039205,-7675.45169861,0.00018087,2]
[327076564,1715787039218,-730.24632967,0.00018087,2]
[327076565,1715787039234,-60125.58806816,0.00018087,2]
[327076800,1715787041781,733.59184254,0.00017987,2]
[327076907,1715787043287,-10047.83072111,0.00018087,2]
[327076910,1715787043297,-845.41098859,0.00018088,2]
[327076915,1715787043307,-428.70497882,0.00018088,2]
[327076923,1715787043319,-610.4842,0.00018088,2]
[327076928,1715787043331,-16049.40478506,0.00018088,2]
[327076932,1715787043342,-3404.19521495,0.00018089,2]
[327076945,1715787044650,-1618.98253267,0.00018089,2]
[327076947,1715787044660,-341.03127753,0.00018089,2]
[327076949,1715787044670,-429.94245468,0.00018089,2]
[327076951,1715787044680,-184.43582576,0.00018098,2]
[327076954,1715787044757,-8106.37075407,0.00018098,2]
[327076955,1715787044767,-1494.77676623,0.00018098,2]
[327076956,1715787044776,-600.92043808,0.00018098,2]
[327076957,1715787044786,-736.08882349,0.00018098,2]
[327076958,1715787044796,-803.36916615,0.00018112,2]
[327076959,1715787044806,-1289.2498401,0.00018207,2]
[327076960,1715787044815,-262.09871976,0.0001821,2]
[327076961,1715787044824,-194.55881668,0.00018214,2]
[327076962,1715787044834,-154.87608676,0.00018217,2]
[327076963,1715787044844,-326.37134528,0.00018217,2]
[327076964,1715787044854,-189.49414795,0.00018223,2]
[327076965,1715787044863,-48.93129645,0.0001831,2]
[327076966,1715787044905,-154.35466483,0.0001831,2]
[327076967,1715787044915,-1031.83456577,0.00018311,2]
[327076968,1715787044924,-309.48934953,0.00018318,2]
[327076969,1715787044934,-1336.72657085,0.00018318,2]
[327076970,1715787044944,-241.33674296,0.00018318,2]
[327076971,1715787044954,-262.09871976,0.00018318,2]
[327076972,1715787044964,-292.45093607,0.00018318,2]
[327076973,1715787044977,-154.7987647,0.00018318,2]
[327076974,1715787044986,-155.00453071,0.00018318,2]
[327076975,1715787044995,-331.17109693,0.00018319,2]
[327076976,1715787045004,-2113.61592946,0.00018322,2]
[327076977,1715787045014,-166.35425316,0.00018324,2]
[327076978,1715787045026,-2792.7493606,0.00018461,2]
[327076979,1715787045037,-834.89269963,0.00018461,2]
[327076980,1715787045048,-157.27495146,0.00018461,2]
[327076981,1715787045062,-154.79876161,0.00018461,2]
[327076982,1715787045072,-589.78867758,0.00018461,2]
[327076983,1715787045082,-186.62571484,0.00018461,2]
[327076984,1715787045092,-155.21163658,0.00018462,2]
[327076985,1715787045103,-684.29354561,0.00018462,2]
[327076986,1715787045112,-905.19763904,0.00018462,2]
[327076987,1715787045122,-155.46832006,0.00018462,2]
[327076988,1715787045131,-725.7201463,0.00018462,2]
[327076989,1715787045143,-156.25790891,0.00018462,2]
[327076990,1715787045153,-702.05425125,0.00018462,2]
[327076991,1715787045162,-154.79876161,0.00018462,2]
[327076992,1715787045173,-155.13326488,0.00018462,2]
[327076993,1715787045182,-2173.23280837,0.00018462,2]
[327076994,1715787045192,-889.38718772,0.00018463,2]
[327076995,1715787045202,-733.59184254,0.00018465,2]
[327076996,1715787045211,-1269.27125949,0.000189,2]
[327076997,1715787045222,-500.0,0.00019178,2]
[327076998,1715787045234,-500.0,0.00019178,2]
[327076999,1715787045243,-393.20295773,0.00019178,2]
[327077000,1715787045253,-422.96516506,0.00019178,2]
[327077001,1715787045263,-500.0,0.00019178,2]
[327077002,1715787045273,-500.0,0.00019178,2]
[327077003,1715787045283,-543.84969821,0.00019178,2]
[327077004,1715787045293,-495.15216945,0.00019178,2]
[327077005,1715787045302,-500.0,0.00019178,2]
[327077006,1715787045311,-284.40229474,0.00019178,2]
[327077007,1715787045321,-500.0,0.00019178,2]
[327077008,1715787045333,-500.0,0.00019178,2]
[327077009,1715787045343,-500.0,0.00019178,2]
[327077010,1715787045353,-215.32528847,0.00019178,2]
[327077011,1715787045363,-500.0,0.00019178,2]
[327077012,1715787045372,-500.0,0.00019178,2]
[327077013,1715787045382,-177.41772822,0.00019178,2]
[327077014,1715787045392,-182.960231,0.00019178,2]
[327077015,1715787045402,-178.587921,0.00019178,2]
[327077016,1715787045412,-856.73190001,0.00019274,2]
[327077017,1715787045421,-294.7,0.00019337,2]
[327077018,1715787045431,-294.7,0.00019731,2]